Cogmind - Beta 16 @@@ ROGUE MODE // 2025.11.12 @ 13:55:00 Player: SUI Result: Destroyed by as-60607 with Assembled Blade Performance ------------- Evolutions (0) 0 Regions Visited (3) 600 Robots Destroyed (17) 85 Value Destroyed (398) 398 Prototype IDs (0) 0 Alien Tech Used (0) 0 Bonus (0) 0 TOTAL SCORE: 1083 Bonus ------- None Cogmind --------- Core Integrity 0/250 Matter 250/300 Energy 137/160 System Corruption 8% Temperature Danger (455) Movement Core (500) Ox9 Location -10/Exiles Parts ------- > --- POWER (1) -------- Light Nuclear Core > --- PROPULSION (2) --- (None) > --- UTILITY (2) ------ Large Storage Unit > --- WEAPON (2) ------- Beam Cannon > --- INVENTORY (15) --- Ion Engine Wheel Wheel Huge Storage Unit Signal Interpreter Shield Generator Grenade Launcher Peak State ------------ > --- POWER ------------ Light Nuclear Core > --- PROPULSION ------- Light Treads Light Treads > --- UTILITY ---------- Large Storage Unit Propulsion Shielding > --- WEAPON ----------- Small Laser Beam Cannon > --- INVENTORY -------- Ion Engine Wheel Wheel Huge Storage Unit Signal Interpreter Shield Generator Grenade Launcher [Rating: 9] Favorites ----------- Power Light Ion Engine Engine Light Ion Engine Power Core Light Nuclear Core Propulsion Light Treads Treads Light Treads Utility Propulsion Shielding Device Heat Sink Storage Huge Storage Unit Protection Propulsion Shielding Weapon Small Laser Energy Gun Small Laser Energy Cannon Beam Cannon Build | -11 -10 -10 -10 ------- Run | Yrd Mat Min Exi Slots Evolved . | . . . . Power . | . . . . Propulsion . | . . . . Utility . | . . . . Weapon . | . . . . Parts Attached 15 | 6 6 . 3 Power 3 | 1 1 . 1 Engine 2 | 1 1 . . Core 1 | . . . 1 Reactor . | . . . . Propulsion 3 | 2 . . 1 Treads 3 | 2 . . 1 Leg . | . . . . Wheel . | . . . . Hover . | . . . . Flight . | . . . . Utility 5 | 1 3 . 1 Device 1 | . 1 . . Storage 3 | 1 1 . 1 Processor . | . . . . Hackware . | . . . . Protection 1 | . 1 . . Artifact . | . . . . Weapon 4 | 2 2 . . Energy Gun 3 | 2 1 . . Energy Cannon 1 | . 1 . . Ballistic Gun . | . . . . Ballistic Cannon . | . . . . Launcher . | . . . . Special Weapon . | . . . . Impact Weapon . | . . . . Slashing Weapon . | . . . . Piercing Weapon . | . . . . Special Melee Weapon . | . . . . Unidentified Prototypes . | . . . . Parts Lost 9 | . 4 . 5 Power 2 | . 1 . 1 Propulsion 2 | . . . 2 Utility 2 | . 1 . 1 Weapon 3 | . 2 . 1 Highest Loss Streak 5 | . 2 . 5 To Critical Strikes . | . . . . Average Backups 7 | 3 7 8 8 Power 1 | . 1 2 1 Propulsion 2 | 1 2 3 2 Utility 2 | . 1 2 2 Weapon 1 | 1 2 1 1 Tool/Special . | . . . . Unused Backups 7 | . 1 . 6 Power 1 | . . . 1 Propulsion 2 | . . . 2 Utility 2 | . . . 2 Weapon 2 | . 1 . 1 Tool/Special . | . . . . Average Slot Usage (%) 99 | . 97 100 99 Engine 13 | . 14 14 13 Treads 27 | . 27 28 27 Device 1 | . 6 . . Storage 14 | . 14 14 14 Protection 11 | . 6 14 13 Energy Gun 17 | . 25 14 14 Energy Cannon 10 | . 2 14 14 Peak Build Rating 9 | 6 8 8 9 Average Rating 7 | 3 7 8 7 On Entrance 5 | . 6 8 8 Avg Prop Armor Cover (%) . | . . . . Naked Turns . | . . . . Heaviest Build 88 | 11 88 88 88 Greatest Support 40 | 40 40 40 40 Greatest Overweight (x) 4 | 1 4 2 2 Average Overweight (x) . | . . 2 . Largest Inventory Capacity 25 | 8 25 25 25 Average Capacity 17 | 7 13 25 17 Most Carried 9 | 6 9 8 9 Average Carried 7 | 3 7 8 8 Final Capacity 25 | 8 25 25 15 Final Carried 8 | 4 8 8 7 Class Distribution -------------------- 100% | Mutant Dominant Class ---------------- Mutant | -10/Materials Mutant | -10/Mines Mutant | -10/Exiles Resources | -11 -10 -10 -10 ----------- Run | Yrd Mat Min Exi Matter Collected 329 | 197 132 . . Remotely . | . . . . Salvage Created 564 | . 475 . 89 Parts 32 | . 28 . 4 Haulers Intercepted 1 | . 1 . . Recyclers Shooed 1 | . 1 . . Parts Field Recycled . | . . . . Retrieved Matter . | . . . . Parts Self-Destructed . | . . . . Prevented . | . . . . Parts Restored . | . . . . Kills | -11 -10 -10 -10 ------- Run | Yrd Mat Min Exi Combat Hostiles Destroyed 14 | . 11 . 3 Guns 11 | . 10 . 1 Cannons 3 | . 1 . 2 Classes Destroyed 6 | . 4 . 2 Hauler 1 | . 1 . . Watcher 3 | . 3 . . Swarmer 3 | . 3 . . Grunt 8 | . 8 . . Zionite 2 | . . . 2 Assembled 3 | . . . 3 Best Kill Streak 5 | . 3 . 5 Combat Bots Only 3 | . 3 . 3 Max Kills in Single Turn 1 | . 1 . 1 Gunslinging . | . . . . Exploded . | . . . . Melee . | . . . . Uniques/NPCs Destroyed . | . . . . Combat | -11 -10 -10 -10 -------- Run | Yrd Mat Min Exi Hostile Shots Fired 114 | . 76 . 38 Missed 32 | . 24 . 8 Hits 82 | . 52 . 30 Melee 10 | . . . 10 Projectile 72 | . 52 . 20 Critical Strikes 1 | . 1 . . Part Disruptions 2 | . . . 2 Actively Blocked 1 | . . . 1 Damage Taken 1158 | . 599 . 559 Core 254 | . 115 . 139 Absorbed by Shields . | . . . . Redirected to Shielding 31 | . 17 . 14 Core Remaining (%) 100 | 100 . . . Volleys Fired 70 | . 56 . 14 Largest 2 | . 2 . 2 Hottest 100 | . 100 . 100 Shots Fired 128 | . 101 . 27 Gun 111 | . 98 . 13 Cannon 17 | . 3 . 14 Launcher . | . . . . Special . | . . . . Kinetic . | . . . . Thermal 128 | . 101 . 27 Explosive . | . . . . Electromagnetic . | . . . . Robot Hit Streak 14 | . 14 . 5 Robot Miss Streak 3 | . 3 . 3 Penetration Max . | . . . . Secondary Targets 3 | . 3 . . Max Gunslinging Chain 1 | . 1 . . Shots Hit Robots 84 | . 72 . 12 Core Hits 35 | . 26 . 9 Critical Kills . | . . . . Critical Parts Destroyed . | . . . . Critical Strikes 3 | . 3 . . Burn 3 | . 3 . . Melee Attacks . | . . . . Impact . | . . . . Slashing . | . . . . Piercing . | . . . . Sneak Attacks . | . . . . Combat Hostiles . | . . . . Follow-up Attacks . | . . . . Damage Inflicted 1054 | . 861 . 193 Guns 927 | . 838 . 89 Cannons 122 | . 18 . 104 Explosions . | . . . . Melee . | . . . . Ramming 5 | . 5 . . Kinetic . | . . . . Thermal 1049 | . 856 . 193 Explosive . | . . . . Electromagnetic . | . . . . Impact . | . . . . Slashing . | . . . . Piercing . | . . . . Highest Corruption 8 | . 1 1 8 Average Corruption 1 | . 1 1 1 Corruption Purged . | . . . . Corruption Blocked . | . . . . Effects 24 | . 9 5 10 Message Errors 9 | . 3 2 4 Matter Fused 7 | . 2 1 4 Energy Discharges 2 | . 1 1 . Parts Rejected 1 | . 1 . . Parts Fused 1 | . . 1 . Data Loss (minor) 1 | . 1 . . Data Loss (major) 1 | . 1 . . Misfires 1 | . . . 1 Weapon Failures 1 | . . . 1 Overload Shots . | . . . . Overflow Damage . | . . . . Projectiles . | . . . . Explosions . | . . . . Melee . | . . . . Knockbacks . | . . . . Impact . | . . . . Kinetic . | . . . . Secondary . | . . . . Self-Inflicted Damage . | . . . . Shots . | . . . . Rammed 1 | . 1 . . Targets Rammed 1 | . 1 . . Kicked . | . . . . Crushed . | . . . . Highest Temperature 455 | . 309 . 455 Average Temperature 115 | . 100 . 171 Received Heat Transfer 518 | . 318 . 200 Effects 3 | . 3 . . Interference 3 | . 3 . . Siege Activations . | . . . . Martial Activations . | . . . . Shielding Activations . | . . . . Robots Disrupted . | . . . . Combat Hostiles . | . . . . Robots Corrupted . | . . . . Combat Hostiles . | . . . . Parts Fried . | . . . . Impact Corruptions . | . . . . Robots Melted . | . . . . Combat Hostiles . | . . . . Parts Melted 6 | . 6 . . Heat Transferred 2924 | . 2502 . 422 Parts Sabotaged . | . . . . Parts Stolen . | . . . . Parts Stripped . | . . . . Power Chain Reactions . | . . . . Alert | -11 -10 -10 -10 ------- Run | Yrd Mat Min Exi Maximum Alert Level . | . . . . Low Security (%) 100 | 100 100 100 . Level 1 . | . . . . Level 2 . | . . . . Level 3 . | . . . . Level 4 . | . . . . Level 5 . | . . . . High Security . | . . . . Max Security . | . . . . Peak Influence 99 | . 99 12 . Initial 12 | . . 12 . Average 15 | . 26 . . Influence Increases 303 | . 303 . . Destroy 0b10 Robot/C 220 | . 220 . . Destroy 0b10 Robot/NC 20 | . 20 . . Destroy Leader 48 | . 48 . . Lose Combat Pursuer 15 | . 15 . . Influence Decreases 303 | . 272 31 . Entered New Map 19 | . . 19 . Time Decay 264 | . 252 12 . Lost Part 20 | . 20 . . Squads Dispatched 1 | . 1 . . Investigation . | . . . . Extermination . | . . . . Reinforcement 1 | . 1 . . Assault . | . . . . Garrison . | . . . . Intercept . | . . . . Searches Triggered . | . . . . Construction Impeded . | . . . . Haulers Reinforced . | . . . . Active Scanning Responses . | . . . . Cargo Convoy Interrupts . | . . . . Stealth | -11 -10 -10 -10 --------- Run | Yrd Mat Min Exi Distress Signals 1 | . . 1 . Communications Jammed . | . . . . Distress Signals . | . . . . Times Spotted 30 | . 17 . 13 Peak Tracking Total 14 | . 3 . 14 Tactical Retreats 2 | . 1 . 1 Traps | -11 -10 -10 -10 ------- Run | Yrd Mat Min Exi Traps Triggered 1 | . 1 . . Indirectly . | . . . . Trap Hack Attempts . | . . . . Triggered . | . . . . Disarmed . | . . . . Reprogrammed . | . . . . Reused . | . . . . Traps Extracted . | . . . . Installed . | . . . . Triggered . | . . . . Machines | -11 -10 -10 -10 ---------- Run | Yrd Mat Min Exi Machines Disabled 2 | . . . 2 Max in Single Turn 1 | . . . 1 Machines Repaired . | . . . . Machines Dismantled . | . . . . Machines Sabotaged . | . . . . Overloaded Fab Kills . | . . . . Hacking | -11 -10 -10 -10 --------- Run | Yrd Mat Min Exi Machines Accessed 6 | . 2 . 4 Terminals 2 | . 2 . . Fabricators . | . . . . Repair Stations . | . . . . Recycling Units . | . . . . Scanalyzers . | . . . . Garrison Access . | . . . . Total Hacks 52 | . 3 . 49 Successful 52 | . 3 . 49 Failed . | . . . . Catastrophic . | . . . . Database Lockouts . | . . . . Manual 1 | . . . 1 Terminals 3 | . 3 . . Fabricators . | . . . . Repair Stations . | . . . . Recycling Units . | . . . . Scanalyzers . | . . . . Garrison Access . | . . . . Terminal Hacks 52 | . 3 . 49 Record 51 | . 2 . 49 Alert Level 1 | . 1 . . Fabricator Hacks . | . . . . Repair Station Hacks . | . . . . Recycling Unit Hacks . | . . . . Scanalyzer . | . . . . Garrison Access Hacks . | . . . . Unauthorized Hacks . | . . . . Terminals . | . . . . Fabricators . | . . . . Repair Stations . | . . . . Recycling Units . | . . . . Scanalyzers . | . . . . Garrison Access . | . . . . Data Cores Recovered . | . . . . Used . | . . . . Hacking Detections . | . . . . Full Trace Events . | . . . . Feedback Events . | . . . . Feedback Blocked . | . . . . Robot Schematics Acquired . | . . . . Robots Built . | . . . . Authchips . | . . . . Time . | . . . . Total Robot Build Rating . | . . . . Part Schematics Acquired . | . . . . Parts Built . | . . . . Authchips . | . . . . Time . | . . . . Total Part Build Rating . | . . . . Part Studies Acquired . | . . . . Parts Repaired . | . . . . Time . | . . . . Parts Recycled . | . . . . Recycled Matter . | . . . . Retrieved Matter . | . . . . Retrieved Components . | . . . . Parts Scanalyzed . | . . . . Part Schematics Acquired . | . . . . Parts Damaged . | . . . . Bothacking | -11 -10 -10 -10 ------------ Run | Yrd Mat Min Exi Used RIF Installer . | . . . . Robots Hacked . | . . . . Non-combat . | . . . . Combat . | . . . . Robot Hacks Applied . | . . . . Relay Couplers Released . | . . . . Fabnet Peak Effective % . | . . . . Robots Rewired . | . . . . Allies Hacked . | . . . . Hacks Repelled . | . . . . Allies | -11 -10 -10 -10 -------- Run | Yrd Mat Min Exi Total Allies . | . . . . Largest Group . | . . . . Highest-Rated Group . | . . . . Highest-Rated Ally . | . . . . Total Orders . | . . . . Ally Attacks . | . . . . Total Damage . | . . . . Kills . | . . . . Allies Corrupted . | . . . . Allies Melted . | . . . . Intel | -11 -10 -10 -10 ------- Run | Yrd Mat Min Exi Active Infowar (turns) . | . . . . Robot Analysis Total . | . . . . Derelict Logs Recovered . | . . . . Drone Launches . | . . . . Drone Recoveries . | . . . . Exploration | -11 -10 -10 -10 ------------- Run | Yrd Mat Min Exi Turns Passed 2932 | 71 916 570 1375 Spaces Moved 1311 | 50 345 179 737 Core 26 | 26 . . . Treads 1285 | 24 345 179 737 Legs . | . . . . Wheels . | . . . . Hover . | . . . . Flight . | . . . . Fastest Speed 50 | 50 160 320 160 Average Speed 199 | 113 191 320 180 Slowest Speed 480 | 160 480 320 320 Overloaded Moves . | . . . . Propulsion Burnouts . | . . . . Robots Hopped . | . . . . Potential Cave-ins . | . . . . Cave-ins Triggered . | . . . . Exploration Rate (%) 50 | 3 69 46 82 Regions Visited 3 Branch Regions 2 Pre-discovered Areas 1 | . . . 1 Known Exits Taken . | . . . . Unknown Exits Taken 3 | 1 1 1 . Scrap Searched . | . . . . Spaces Dug . | . . . . Terrain Destroyed . | . . . . Melee . | . . . . Projectile . | . . . . AOE . | . . . . Terrain Rammed . | . . . . Walls Destroyed . | . . . . Machines Disabled . | . . . . Actions | -11 -10 -10 -10 --------- Run | Yrd Mat Min Exi Total 1498 | 64 501 178 755 Wait 80 | . 80 . . Move 1308 | 49 344 178 737 Hop . | . . . . Pick Up 21 | 9 11 . 1 Fast Attach 1 | 1 . . . Attach 12 | 5 6 . 1 Detach . | . . . . Swap 3 | . 1 . 2 Drop 2 | . 2 . . Fire 70 | . 56 . 14 Melee . | . . . . Ram . | . . . . Kick . | . . . . Crush 1 | . 1 . . Escape Stasis . | . . . . Rewire . | . . . . Trap . | . . . . Miscellaneous . | . . . . Route ------- -11/Scrapyard -10/Materials (discovered 2 exits: [*Mat] / [*Min]) -10/Mines -10/Exiles (discovered 1 exit: [*Min]) History --------- Turn | Location | Event 6 | -11/Scrapyard | Discovered new exit (range 15) 72 | -11/Scrapyard | Entered Materials 304 | -10/Materials | Build established: Mutant 598 | -10/Materials | Discovered new exit (range 16) 936 | -10/Materials | Discovered new exit (range 16) 988 | -10/Materials | Entered Mines 1415 | -10/Mines | Assembled infested the area 1539 | -10/Mines | Deemed a non-threat by the Exiles lab entrance 1542 | -10/Mines | Discovered new exit (range 5) 1558 | -10/Mines | Entered Exiles 1610 | -10/Exiles | Discovered new exit (range 14) 1651 | -10/Exiles | Met 8R-AWN 1712 | -10/Exiles | Met EX-HEX 1887 | -10/Exiles | Met EX-DEC 1935 | -10/Exiles | Visited The Gauntlet 2182 | -10/Exiles | Met EX-BIN 2524 | -10/Exiles | Learned location of Zion (-7) 2872 | -10/Exiles | Attacked by the Exiles 2906 | -10/Exiles | Core integrity fell below 50% 2929 | -10/Exiles | Core integrity fell below 20% 2933 | -10/Exiles | Destroyed by as-60607 with Assembled Blade Last Messages --------------- Cannon. System corrupted: Beam Cannon misfires. Machine disabled. EXILES: Hostile robot within lab perimeter. Defensive protocols time, folks! AM-PHS destroyed. Machine disabled. ZX-C33 destroyed. Lgt. Ion Engine destroyed. as-27410 destroyed. System corrupted: Beam Cannon failed to cycle. Propulsion Shielding destroyed. System corrupted by crushing effect (+5). Lgt. Treads destroyed. as-45679 destroyed. System corrupted: Matter fused (-8). Sml. Laser destroyed. Lgt. Treads destroyed. System corrupted by crushing effect (+2). as-61991 destroyed. Map ----- +----------------------------------------------------+ | ????????????????????????????????#" | | ????????????????????????????????#"""" | | ????????????????????????????????#"" | | ????????????????????????????????#" """ | | ????????????????????????????????#""" "" | | ????????????????????????????????## "" | | ?????????????????????????????????#"" """# | | ?????????????????????????????????##""" ## | | ??????????????????????????????????##"""" ##? | | ???????????????????????????????????### #?? | | ?????????????????????????????????????##### ##?? | | ?????????????????????????????????????????## #??? | | ??????????????????????????????????????????# #??? | | ??????????????????????????????????????????# #??? | | ??????????????????????????????????????????# #??? | | ???????????#####???????###???????###??????# #??? | | ?????????#"""""""?????""""""???#"""""?????# #??? | | ??????????"" ""????"""""""#???"""""""???# #??? | | ?????????#" "???"""""" "#??#" """"#??# #??? | | ??????????"" ""#""#""" """#??#"" """???# #??? | | ??????????"" "?#""#"" ""????"" ""???# #??? | | ????########"""###""###"""########"""###### #### | | ????#"""" "" """"""" """""""" """""" """" | | ????#" """""" """ | | ????#""" % aa | | ????#"""" !@% c | | ????#"" !%aa | | ????#""" " * "" | | ????#"" """ """""" " """"" " """" "" | | ????########"""########"""###""###"""########"""## | | ??????????"" "?????"" ""#""#"" ""????"" "" | | ?????????#""" """???#""" ""#""#""" ""#??#"" """ | | ?????????#" """ "???#" """"""""#" " "#??#""""""" | | ??????????"""""""???#"""""""#""#"""""""#??#"" """" | | ??????????"""""""???#"""""""????"""""""#???""""""? | | ???????????????????????#"##???????####??????####?? | | ?????????????????????????????????????????????????? | | ?????????????????????????????????????????????????? | | ?????????????????????????????????????????????????? | | ?????????????????????????????????????????????????? | | | | | | | | | | | | | | | | | | | | | +----------------------------------------------------+ Best States ------------- Heat Dissipation 35 Energy Generation 14 Energy Capacity 160 Matter Stores 300 Matter Capacity 300 Sight Range 16 Terrain Scan Density 10 Propulsion Shielding 33 Evasion (%) 50 Recoil Reduction 2 Item Schematics ----------------- None Robot Schematics ------------------ None Fabricated ------------ Nothing Repaired ---------- Nothing Studied --------- None Alien Tech Used ----------------- None Achievements -------------- None Challenges ------------ None Game ------ Seed CompactGatlingDisintegrator Manual? 0 Play Time 00:13:52 Cumulative 6.1 hours Start 2025.11.12 @ 13:41:02 End 2025.11.12 @ 13:55:00 Sessions 1 Manual Loads 0 Difficulty Rogue Special Mode None Game No. 15 Rogue 15 Adventurer 0 Explorer 0 Win Type - Total 0 Types 0/0/0/0/0/0/0/0/0/0 Lore% 9 Gallery% 8 Achievement% 8 Wizard Run 0 Options --------- Layout 1 ASCII 0 Keyboard 0 Movement Mouse Keybinds 0 Fullscreen 1 Font 32/SmallcapsGlow Map View 50x35 Zoom Use 0% Tactical HUD 0 Map Filters NONE Filters NONE Steam 1 RUN: 8e688ddb-bc6c-4195-bd9a-0a7832f73790